bitfinex-derivatives/quotes_BTCF0:USTF0_20250327
["timestamp","ask_amount","ask_price","bid_price","bid_amount"]
[1743084707771,0.3608,86322.0,86321.0,0.1158791]
[1743084707959,0.3608,86322.0,86321.0,0.2450791]
[1743084708273,0.3608,86322.0,86321.0,0.2466791]
[1743084708571,0.3608,86322.0,86321.0,0.25828284]
[1743084708770,0.3608,86322.0,86321.0,0.26712974]
[1743084709273,0.4608,86322.0,86321.0,0.13792974]
[1743084709572,0.4608,86322.0,86321.0,0.26712974]
[1743084710764,0.5766777,86322.0,86321.0,0.15125064]
[1743084711571,0.8408777,86322.0,86321.0,0.26712974]
[1743084712363,0.8408777,86322.0,86321.0,0.15125064]
[1743084712964,0.8408777,86322.0,86321.0,0.26712974]
[1743084713165,0.8408777,86322.0,86321.0,0.15125064]
[1743084713564,0.8408777,86322.0,86321.0,0.126326]
[1743084713766,0.8408777,86322.0,86321.0,0.0104469]
[1743084714165,0.1158844,86317.0,86316.0,0.20748539]
[1743084714375,0.0579449,86313.0,86294.0,0.47600775]
[1743084714571,0.0579435,86316.0,86294.0,0.47600775]
[1743084714572,0.4766978,86307.0,86306.0,0.27699765]
[1743084714776,0.4766978,86307.0,86306.0,0.27587765]
[1743084715069,0.47781781,86307.0,86306.0,0.00112]
[1743084715274,0.47781781,86307.0,86303.0,0.1159032]
[1743084715275,0.1738535,86304.0,86303.0,0.1159032]
[1743084715471,0.1738535,86304.0,86301.0,0.12718621]
[1743084715472,0.1159046,86302.0,86301.0,0.06923351]
[1743084715671,0.11702461,86302.0,86301.0,0.07039351]
[1743084716373,0.11702461,86302.0,86301.0,0.00116]
[1743084716773,0.11702461,86302.0,86301.0,0.1170659]
[1743084717170,0.11702461,86302.0,86301.0,0.00116]
[1743084717371,0.27497751,86302.0,86301.0,0.00865168]
[1743084717677,0.1159086,86299.0,86298.0,0.00017384]
[1743084717873,0.47782861,86299.0,86298.0,0.11720374]
[1743084718376,0.00112001,86299.0,86298.0,0.13739522]
[1743084718574,0.52212001,86299.0,86298.0,0.13739522]
[1743084718769,0.63802861,86299.0,86298.0,0.26655522]
[1743084718972,0.73802861,86299.0,86298.0,0.50745522]
[1743084719284,0.73802861,86299.0,86298.0,0.37829522]
[1743084719977,0.73802861,86299.0,86298.0,0.26238532]
[1743084720174,0.73802861,86299.0,86298.0,0.02148532]
[1743084720677,0.98752861,86299.0,86298.0,0.00877946]
[1743084721082,0.98652861,86299.0,86298.0,0.00877946]
[1743084721780,0.98752861,86299.0,86298.0,0.00877946]
[1743084722378,0.98752861,86299.0,86298.0,0.00017384]
[1743084723881,0.98652861,86299.0,86298.0,0.00017384]
[1743084724071,0.98752861,86299.0,86298.0,0.00017384]
[1743084724274,0.98752861,86299.0,86298.0,0.00137384]
[1743084724582,0.0579576,86294.0,86288.0,0.01344731]
[1743084724782,0.476722,86289.0,86288.0,0.01170909]
[1743084725083,0.47732201,86289.0,86288.0,0.01170909]
[1743084725584,0.1159328,86281.0,86280.0,0.00025384]
[1743084725784,0.1159328,86281.0,86280.0,0.00137384]
[1743084725785,0.47733281,86281.0,86280.0,0.00137384]
[1743084726177,0.47733281,86281.0,86280.0,0.00017384]
[1743084726377,0.97093281,86281.0,86280.0,0.00129384]
[1743084726575,0.97093281,86281.0,86280.0,0.00017384]
[1743084727382,0.97093281,86281.0,86280.0,0.00129384]
[1743084727683,0.97393281,86281.0,86280.0,0.00129384]
[1743084727987,1.07393281,86281.0,86280.0,0.00129384]
[1743084728382,1.07293281,86281.0,86280.0,0.00129384]
[1743084728579,1.07293281,86281.0,86280.0,0.00017384]
[1743084728782,1.07293281,86281.0,86280.0,0.12747011]
[1743084728985,1.07293281,86281.0,86280.0,0.11610794]
[1743084729489,1.07293281,86281.0,86280.0,0.11726794]
[1743084729683,1.07293281,86281.0,86280.0,0.35476794]
[1743084730291,1.07293281,86281.0,86280.0,0.58986794]
[1743084730484,0.95700001,86281.0,86280.0,0.58986794]
[1743084730679,0.71240001,86281.0,86280.0,0.48533634]
[1743084730878,0.71440001,86281.0,86280.0,0.60127044]
[1743084731090,0.10260001,86281.0,86280.0,0.60127044]
[1743084731385,0.1159142,86295.0,86280.0,0.60127044]
[1743084731386,0.3608,86298.0,86297.0,0.1159113]
[1743084731579,0.4780699,86298.0,86297.0,0.2467513]
[1743084731776,0.4780699,86298.0,86297.0,0.62274]
[1743084731985,0.7205699,86298.0,86297.0,0.7386513]
[1743084732183,0.7205699,86298.0,86297.0,0.25816]
[1743084732378,0.9650699,86298.0,86297.0,0.25816]
[1743084733092,0.9650699,86298.0,86297.0,0.00136]
[1743084733284,0.1159153,86294.0,86293.0,8e-05]
[1743084733479,0.11651531,86294.0,86293.0,8e-05]
[1743084733678,0.1159193,86291.0,86290.0,0.12952]
[1743084733985,0.47731931,86291.0,86290.0,0.1308]
[1743084734181,0.96801931,86291.0,86290.0,0.1308]
[1743084734382,0.1159207,86290.0,86289.0,8e-05]
[1743084734585,0.1172007,86290.0,86289.0,0.00136]
[1743084734787,0.1172007,86290.0,86282.0,0.2454914]
[1743084734788,0.1159301,86283.0,86282.0,0.2454914]
[1743084735081,0.36208,86283.0,86282.0,0.2467714]
[1743084735286,0.60228,86283.0,86282.0,0.4814714]
[1743084735483,0.24148,86283.0,86282.0,0.7178714]
[1743084735881,0.24148,86283.0,86282.0,0.7188714]
[1743084736390,0.5767197,86291.0,86290.0,0.1159207]
[1743084736391,0.3608,86291.0,86290.0,0.1159207]
[1743084736589,0.3608,86291.0,86290.0,0.1176007]
[1743084736784,0.4767193,86291.0,86290.0,0.49818]
[1743084736984,0.3608,86291.0,86290.0,0.6141007]
[1743084737185,0.5992,86291.0,86290.0,0.6141007]
[1743084737384,0.6992,86291.0,86290.0,0.6141007]
[1743084738896,0.7002,86291.0,86290.0,0.6141007]
[1743084739098,0.4618,86291.0,86290.0,0.6141007]
[1743084739288,0.3608,86300.0,86299.0,0.1159086]
[1743084739495,0.3608,86300.0,86299.0,0.1177086]
[1743084739691,0.4767073,86300.0,86299.0,0.5002]
[1743084739890,0.4767073,86300.0,86299.0,0.2538]
[1743084740191,0.4767073,86300.0,86299.0,0.3697086]
[1743084740192,0.9450073,86300.0,86299.0,0.3697086]
[1743084740390,0.9450073,86300.0,86299.0,0.5002]
[1743084740600,0.9450073,86300.0,86299.0,0.0018]
[1743084740893,0.9450073,86300.0,86280.0,0.00017384]
[1743084740894,0.1159328,86281.0,86280.0,0.00017384]
[1743084741086,0.4767328,86281.0,86280.0,0.00185384]
[1743084741286,0.5767328,86281.0,86280.0,0.00185384]
[1743084741487,1.0450328,86281.0,86280.0,0.00185384]
[1743084742295,1.0450328,86281.0,86280.0,0.00017384]
[1743084742500,1.0450328,86281.0,86280.0,0.00185384]
[1743084743096,1.0450328,86281.0,86280.0,0.00017384]
[1743084743981,1.0450328,86281.0,86280.0,0.00185384]
[1743084744187,1.0450328,86281.0,86280.0,0.00017384]
[1743084744398,1.0450328,86281.0,86280.0,0.00185384]
[1743084744693,1.0460328,86281.0,86280.0,0.00017384]
[1743084744896,0.1159449,86272.0,86271.0,8e-05]
[1743084745199,0.1159516,86267.0,86266.0,0.1159525]
[1743084745384,0.1159543,86265.0,86264.0,0.1739291]
[1743084745587,0.1159543,86265.0,86264.0,0.1756091]
[1743084746092,0.6134543,86265.0,86264.0,0.1756091]
[1743084746287,0.7134543,86265.0,86264.0,0.1756091]
[1743084746485,0.7134543,86265.0,86264.0,0.4148091]
[1743084746687,0.7134543,86265.0,86264.0,0.2988578]
[1743084746891,0.4711543,86265.0,86264.0,0.30769082]
[1743084747099,0.1,86265.0,86264.0,0.56369082]
[1743084747295,0.2159543,86265.0,86264.0,0.56369082]
[1743084747995,0.2159543,86265.0,86264.0,0.69389082]
[1743084748687,0.1,86265.0,86264.0,0.69389082]
[1743084748893,0.2159543,86265.0,86264.0,0.01151302]
[1743084749097,0.2159543,86265.0,86264.0,0.00983302]
[1743084750193,0.2159543,86265.0,86264.0,0.12578862]
[1743084750399,0.1,86265.0,86264.0,0.12754862]
[1743084750592,0.2159543,86265.0,86264.0,0.60964862]
[1743084751398,0.1,86265.0,86264.0,0.60964862]
[1743084751791,0.2159543,86265.0,86264.0,0.60964862]
[1743084752296,0.1,86265.0,86264.0,0.60964862]
[1743084753001,0.4767463,86271.0,86270.0,0.1159476]
[1743084753199,0.3608,86271.0,86270.0,0.2468276]
[1743084753494,0.4767462,86271.0,86270.0,0.00168]
[1743084753701,0.1159489,86269.0,86268.0,0.1292]
[1743084753899,0.1159489,86269.0,86268.0,0.13088]
[1743084754296,0.6999489,86269.0,86268.0,0.13088]
[1743084754497,0.6999489,86269.0,86268.0,0.00168]
[1743084754799,0.1159543,86265.0,86264.0,0.00983302]
[1743084755001,0.1159543,86265.0,86264.0,0.24755302]
[1743084755298,0.1159543,86267.0,86266.0,0.1159512]
[1743084755499,0.1739303,86267.0,86266.0,0.00168]
[1743084756195,0.1739303,86267.0,86266.0,0.1176329]
[1743084756402,0.2739303,86267.0,86266.0,0.1176329]
[1743084756792,0.2739303,86267.0,86266.0,0.00168]
[1743084756994,0.1159543,86265.0,86264.0,0.00983302]
[1743084757299,0.4767543,86265.0,86264.0,0.00983302]
[1743084757489,0.9513543,86265.0,86264.0,0.00983302]
[1743084757889,1.0513543,86265.0,86264.0,0.00983302]
[1743084758091,1.0513543,86265.0,86264.0,0.00883302]
[1743084758297,1.0513543,86265.0,86256.0,0.00017384]
[1743084758298,0.0579809,86260.0,86256.0,0.00017384]
[1743084758495,0.476765,86257.0,86256.0,0.00185384]
[1743084758903,0.476765,86257.0,86256.0,0.0107604]
[1743084758904,0.955765,86257.0,86256.0,0.0107604]
[1743084759199,0.955765,86257.0,86256.0,0.00185384]
[1743084759500,0.955765,86257.0,86256.0,0.00485384]
[1743084759901,0.955765,86257.0,86256.0,0.11914024]
[1743084760105,0.8398,86257.0,86256.0,0.11782024]
[1743084760310,0.9398,86257.0,86256.0,0.12090024]
[1743084760496,0.3354,86257.0,86256.0,0.36728065]
[1743084760806,0.3354,86257.0,86256.0,0.59548065]
[1743084760995,0.3354,86257.0,86256.0,0.35758065]
[1743084761190,0.3354,86257.0,86256.0,0.72468065]
[1743084762005,0.3608,86276.0,86259.0,0.0579811]
[1743084762205,0.17298723,86273.0,86272.0,0.1159449]
[1743084762390,0.17298723,86273.0,86272.0,0.7129249]
[1743084762595,0.17298723,86273.0,86272.0,0.7146049]
[1743084762795,0.17298723,86273.0,86272.0,0.7129249]
[1743084763097,0.17298723,86273.0,86272.0,0.72430434]
[1743084763300,0.27298723,86273.0,86272.0,0.72430434]
[1743084763501,0.38893073,86273.0,86272.0,0.60835944]
[1743084764005,0.61923073,86273.0,86272.0,0.72430434]
[1743084764901,0.50328723,86273.0,86272.0,0.72430434]
[1743084765096,0.50428723,86273.0,86272.0,0.72430434]
[1743084765604,0.06188991,86273.0,86272.0,0.72430434]
[1743084766109,0.3608,86283.0,86277.0,0.057969]
[1743084766402,0.3608,86293.0,86292.0,0.115918]
[1743084766593,0.2407,86299.0,86298.0,0.1159099]
[1743084766794,0.00017384,86301.0,86299.0,0.1159086]
[1743084766995,0.00017384,86301.0,86300.0,0.1159073]
[1743084767203,0.3608,86331.0,86317.0,0.1158844]
[1743084767405,0.2407,86329.0,86317.0,0.2467644]
[1743084767608,0.356569,86329.0,86317.0,0.1175644]
[1743084767913,0.2407,86323.0,86317.0,0.2467644]
[1743084768310,0.00017384,86326.0,86323.0,0.1158764]
[1743084768504,0.22851719,86324.0,86323.0,0.1175564]
[1743084768808,0.00017384,86326.0,86325.0,0.1158737]
[1743084769114,0.23657721,86330.0,86329.0,0.1158683]
[1743084769311,0.23657721,86330.0,86329.0,0.1175883]
[1743084769606,0.08226282,86330.0,86329.0,0.2675883]
[1743084769802,0.00795393,86330.0,86329.0,0.2675883]
[1743084770004,0.3608,86344.0,86334.0,0.0579307]
[1743084770005,0.00017384,86338.0,86334.0,0.0579307]
[1743084770197,0.00017384,86338.0,86337.0,0.1158576]
[1743084770397,0.00017384,86338.0,86337.0,0.1175376]
[1743084771613,0.00017384,86338.0,86337.0,0.01342471]
[1743084771812,0.22847384,86338.0,86337.0,0.00168]
[1743084771998,0.34433004,86338.0,86337.0,0.00168]
[1743084772204,0.70513004,86338.0,86337.0,0.00168]
[1743084772401,0.80513004,86338.0,86337.0,0.00168]
[1743084772810,0.80913004,86338.0,86337.0,0.00168]
[1743084774910,0.1158602,86336.0,86329.0,0.0579341]
[1743084775112,0.3608,86330.0,86329.0,0.1738024]
[1743084775404,0.3608,86330.0,86329.0,0.1754824]
[1743084776010,0.4608,86330.0,86329.0,0.1754824]
[1743084776408,0.102,86330.0,86329.0,0.1754824]
[1743084777412,0.002,86330.0,86329.0,0.1754824]
[1743084777609,0.002,86330.0,86329.0,0.1175483]
[1743084777818,0.002,86330.0,86329.0,0.2466683]
[1743084778414,0.102,86330.0,86329.0,0.2466683]
[1743084778613,0.102,86330.0,86329.0,0.4734683]
[1743084779719,0.002,86330.0,86329.0,0.8342683]
[1743084780315,0.00017384,86338.0,86337.0,0.1158576]
[1743084780523,0.00017384,86338.0,86337.0,0.1175776]
[1743084780721,0.00017384,86338.0,86337.0,0.5730776]
[1743084781821,0.00417384,86338.0,86337.0,0.5730776]
[1743084782213,0.00017384,86338.0,86337.0,0.7041576]
[1743084782416,0.2269,86354.0,86353.0,0.1158361]
[1743084782608,0.3608,86371.0,86370.0,0.1158133]
[1743084782808,0.3608,86371.0,86370.0,0.2465733]
[1743084783416,0.4608,86371.0,86370.0,0.2465733]
[1743084783615,0.4608,86371.0,86370.0,0.4699733]
[1743084783811,0.1,86371.0,86370.0,0.48129772]
[1743084784013,0.0594439,86371.0,86370.0,0.48129772]
[1743084784216,0.0594439,86371.0,86370.0,0.63129772]
[1743084784520,0.00017374,86379.0,86378.0,0.1158026]
[1743084784708,0.00017374,86379.0,86378.0,0.1174826]
[1743084784914,4e-08,86379.0,86378.0,0.1174826]
[1743084785115,0.3608,86393.0,86392.0,0.1157838]
[1743084785316,0.3608,86393.0,86392.0,0.2466238]
[1743084785818,0.2269,86396.0,86395.0,0.1157798]
[1743084786019,0.2191,86410.0,86399.0,0.1157744]
[1743084786226,0.226,86401.0,86399.0,0.1174944]
[1743084786818,0.226,86401.0,86399.0,0.3478944]
[1743084787414,0.2,86400.0,86399.0,0.3478944]
[1743084788221,0.2,86400.0,86399.0,0.35938306]
[1743084788714,0.1,86400.0,86399.0,0.35938306]
[1743084789318,0.2,86400.0,86399.0,0.35938306]
[1743084790817,0.2,86400.0,86399.0,0.48838306]
[1743084791327,0.2,86400.0,86399.0,0.25798306]
[1743084792826,0.21751803,86402.0,86401.0,0.1157718]
[1743084793028,0.21751803,86402.0,86401.0,0.1174518]
[1743084793728,0.44181803,86402.0,86401.0,0.1174518]
[1743084794315,0.3243,86402.0,86401.0,0.1174518]
[1743084795819,0.1,86402.0,86401.0,0.1174518]
[1743084796123,3e-08,86404.0,86403.0,0.1157691]
[1743084796323,3e-08,86404.0,86403.0,0.1174491]
[1743084797421,0.2229,86423.0,86422.0,0.1157436]
[1743084797618,0.2229,86423.0,86422.0,1.1633036]
[1743084798320,0.3229,86423.0,86422.0,1.1633036]
[1743084798719,0.3229,86423.0,86422.0,1.04756]
[1743084799027,0.4386423,86423.0,86422.0,0.92729632]
[1743084799229,0.6618423,86423.0,86422.0,1.04303992]
[1743084799731,0.6618423,86423.0,86422.0,0.92729632]
[1743084800030,0.6618423,86423.0,86422.0,0.9186]
[1743084801521,0.6618423,86423.0,86422.0,0.5524]
[1743084802425,0.6618423,86423.0,86422.0,0.6681436]
[1743084802819,0.6618423,86423.0,86422.0,0.5524]
[1743084803221,0.6618423,86423.0,86416.0,0.1157507]
[1743084803222,0.1736288,86417.0,86416.0,0.1157507]
[1743084803529,0.5351088,86417.0,86416.0,0.1157507]
[1743084803828,0.5351088,86417.0,86416.0,0.1169107]
[1743084804029,0.5351088,86417.0,86416.0,0.1157507]
[1743084804931,0.6351088,86417.0,86416.0,0.1157507]
[1743084805235,0.115753,86415.0,86414.0,0.11600733]
[1743084805420,0.11635301,86415.0,86414.0,0.00025363]
[1743084805823,0.58125301,86415.0,86414.0,0.11600793]
[1743084806221,0.58125301,86415.0,86414.0,0.00017363]
[1743084806529,0.68125301,86415.0,86414.0,0.00017363]
[1743084807028,0.68125301,86415.0,86414.0,0.11592793]
[1743084807435,0.68125301,86415.0,86414.0,0.00133363]
[1743084807624,0.68125301,86415.0,86414.0,0.11708793]
[1743084807825,0.68125301,86415.0,86414.0,0.00133363]
[1743084808024,0.68125301,86415.0,86414.0,0.00017363]
[1743084809138,0.68125301,86415.0,86414.0,0.00137363]
[1743084809635,0.68125301,86415.0,86414.0,0.11712793]
[1743084810934,0.56550001,86415.0,86414.0,0.11712793]
[1743084811330,0.33268001,86415.0,86414.0,0.35522793]
[1743084811531,0.10140001,86415.0,86414.0,0.35522793]
[1743084811830,0.1,86415.0,86414.0,0.57442793]
[1743084812238,0.2258,86425.0,86424.0,0.1157409]
[1743084812435,0.22720001,86425.0,86424.0,0.2460209]
[1743084812628,0.22720001,86425.0,86424.0,0.4812209]
[1743084813032,0.22720001,86425.0,86424.0,0.4929964]
[1743084813335,0.22720001,86425.0,86424.0,0.7143964]
[1743084813738,0.34293961,86425.0,86424.0,0.5986555]
[1743084813938,0.34293961,86425.0,86424.0,0.2577964]
[1743084814325,0.44293961,86425.0,86424.0,0.1420555]
[1743084814532,0.57030001,86425.0,86424.0,0.2563964]
[1743084814734,0.57030001,86425.0,86424.0,0.2577564]
[1743084815340,0.57030001,86425.0,86424.0,0.1420155]
[1743084815636,0.57030001,86425.0,86424.0,0.2563964]
[1743084815835,0.57030001,86425.0,86424.0,0.2577964]
[1743084816843,0.3619656,86425.0,86424.0,0.9502828]
[1743084817036,0.3619656,86425.0,86424.0,1.1922828]
[1743084817936,0.3619656,86425.0,86424.0,1.0634028]
[1743084818140,0.4777052,86425.0,86424.0,0.6938864]
[1743084818438,0.4777052,86425.0,86424.0,0.8096273]
[1743084818841,0.3619656,86425.0,86424.0,0.8096273]
[1743084819155,0.4777052,86425.0,86424.0,0.8096273]
[1743084819533,0.23464662,86425.0,86424.0,0.8096273]
[1743084820738,0.23464662,86425.0,86424.0,0.6938864]
[1743084821044,0.23464662,86425.0,86424.0,0.0014]
[1743084821240,0.1157409,86424.0,86423.0,0.46170439]
[1743084821447,0.4765409,86424.0,86423.0,0.46346439]
[1743084821634,0.4765409,86424.0,86423.0,0.34772279]
[1743084822642,0.9255409,86424.0,86423.0,0.34772279]
[1743084823042,1.0255409,86424.0,86423.0,0.34772279]
[1743084823741,1.0255409,86424.0,86423.0,0.46346509]
[1743084825147,1.0255409,86424.0,86423.0,0.1175023]
[1743084825635,0.9098,86424.0,86423.0,0.1175023]
[1743084825840,0.1,86424.0,86423.0,0.3478023]
[1743084826045,0.1,86424.0,86423.0,0.5695023]
[1743084826340,0.05948452,86424.0,86423.0,0.7936023]
[1743084826660,0.3608,86451.0,86430.0,0.1157329]
[1743084826661,0.13830426,86437.0,86430.0,0.1157329]
[1743084826850,0.13830426,86437.0,86430.0,0.2463329]
[1743084827034,0.13830426,86437.0,86430.0,0.7007329]
[1743084827743,0.17143744,86443.0,86442.0,0.1157168]
[1743084827949,0.17143744,86443.0,86442.0,0.2463168]
[1743084828142,0.13092196,86443.0,86442.0,0.2463168]
[1743084828544,0.09042003,86443.0,86442.0,0.2463168]
[1743084828740,0.09042003,86443.0,86442.0,0.14184699]
[1743084828956,0.09042003,86443.0,86442.0,0.25756379]
[1743084829147,0.09042003,86443.0,86442.0,0.01300699]
[1743084829450,0.55122003,86443.0,86442.0,0.12872379]
[1743084829641,0.55122003,86443.0,86442.0,0.58752379]
[1743084829848,0.4608,86443.0,86442.0,0.58752379]
[1743084830361,0.1,86443.0,86442.0,0.58752379]
[1743084831050,0.1,86443.0,86442.0,0.81942379]
[1743084831456,0.05949807,86443.0,86442.0,0.81942379]
[1743084832340,0.3608,86452.0,86451.0,0.1157048]
[1743084832540,0.3608,86452.0,86451.0,0.1174648]
[1743084832950,0.3608,86452.0,86451.0,0.2462648]
[1743084833256,0.2309,86456.0,86455.0,0.1156994]
[1743084833450,0.2309,86456.0,86455.0,0.2462994]
[1743084833652,0.2371,86464.0,86458.0,0.1156954]
[1743084833854,0.2384,86463.0,86462.0,0.1156901]
[1743084834047,0.2384,86463.0,86462.0,0.1175301]
[1743084834555,0.4540887,86463.0,86462.0,0.12609625]
[1743084834850,0.3384,86463.0,86462.0,0.35009625]
[1743084835050,0.4540887,86463.0,86462.0,0.35009625]
[1743084835245,0.6992,86463.0,86462.0,0.35009625]
[1743084835445,0.6992,86463.0,86462.0,0.58889625]
[1743084836454,0.6992,86463.0,86462.0,0.60035694]
[1743084837153,0.6992,86463.0,86462.0,0.36155694]
[1743084838056,0.6992,86463.0,86462.0,0.24586684]
[1743084838254,0.8148887,86463.0,86462.0,0.01040615]
[1743084838959,0.82646565,86463.0,86462.0,0.01040615]
[1743084839348,0.8148887,86463.0,86462.0,0.01040615]
[1743084839749,0.8148887,86463.0,86462.0,0.01032615]
[1743084840156,0.6992,86463.0,86462.0,0.12601625]
[1743084840456,0.6992,86463.0,86462.0,0.34901625]
[1743084840647,0.3384,86463.0,86462.0,0.34901625]
[1743084840854,0.3384,86463.0,86462.0,0.58371625]
[1743084841447,0.4540887,86463.0,86462.0,0.58371625]
[1743084841653,0.4540887,86463.0,86462.0,0.34901625]
[1743084841963,0.6757887,86463.0,86462.0,0.13908615]
[1743084842157,0.6757887,86463.0,86462.0,0.01032615]
[1743084842353,0.1156968,86457.0,86456.0,0.20681563]
[1743084842547,0.4764968,86457.0,86456.0,0.20865563]
[1743084842754,0.829,86457.0,86456.0,0.33104323]
[1743084843062,0.9446968,86457.0,86456.0,0.55564323]
[1743084843448,0.2322,86457.0,86456.0,0.92510323]
[1743084843749,0.3608,86474.0,86473.0,0.1156754]
[1743084843948,0.3608,86474.0,86473.0,0.2461954]
[1743084843949,0.476474,86474.0,86473.0,0.2461954]
[1743084844154,0.476474,86474.0,86473.0,0.4868954]
[1743084844459,0.576474,86474.0,86473.0,0.4868954]
[1743084844647,0.693,86474.0,86473.0,0.4868954]
[1743084844851,0.808674,86474.0,86473.0,0.7114954]
[1743084845459,0.808674,86474.0,86473.0,0.59582]
[1743084845658,1.044674,86474.0,86473.0,0.59582]
[1743084845962,1.044674,86474.0,86473.0,0.3420354]
[1743084846355,0.693,86474.0,86473.0,0.5632354]
[1743084846757,0.05951136,86474.0,86473.0,0.5632354]
[1743084847063,0.1,86500.0,86495.0,0.1156459]
[1743084847249,0.2294,86499.0,86495.0,0.2462059]
[1743084847761,0.2294,86499.0,86498.0,0.1156419]
[1743084847959,0.2294,86499.0,86498.0,0.0018]
[1743084847960,0.4028615,86499.0,86498.0,0.0018]
[1743084848364,0.2872209,86499.0,86498.0,0.01313653]
[1743084848662,0.2872209,86499.0,86498.0,0.0018]
[1743084849065,0.5104209,86499.0,86498.0,0.0018]
[1743084849266,0.6104209,86499.0,86498.0,0.0018]
[1743084849461,0.1156446,86496.0,86495.0,0.1156459]
[1743084849666,0.0578222,86497.0,86496.0,0.1156446]
[1743084849967,0.5251222,86497.0,86496.0,0.3467046]
[1743084850460,0.5251222,86497.0,86496.0,0.00176]
[1743084850964,0.0578263,86491.0,86487.0,0.00017352]
[1743084851161,0.0578263,86491.0,86488.0,8e-05]
[1743084851162,0.115654,86489.0,86488.0,8e-05]
[1743084851357,0.476454,86489.0,86488.0,0.1174153]
[1743084851666,0.943454,86489.0,86488.0,0.00356]
[1743084851868,0.1156553,86488.0,86487.0,0.00025352]
[1743084852067,0.1156553,86488.0,86487.0,0.11767012]
[1743084852259,0.5974553,86488.0,86487.0,0.11759012]
[1743084853252,0.6974553,86488.0,86487.0,0.11759012]
[1743084853655,0.0578313,86483.0,86477.0,0.20681563]
[1743084853860,0.476466,86480.0,86479.0,0.1169073]
[1743084854254,0.47770601,86480.0,86479.0,0.1169073]
[1743084854468,0.47770601,86480.0,86479.0,0.1182273]
[1743084854768,0.1156673,86479.0,86478.0,8e-05]
[1743084854967,0.5788673,86479.0,86478.0,8e-05]
[1743084855165,0.5788673,86479.0,86477.0,0.20681563]
[1743084855166,0.1156687,86478.0,86477.0,0.20681563]
[1743084855564,0.1156887,86463.0,86462.0,8e-05]
[1743084855762,0.1156901,86462.0,86461.0,0.34524562]
[1743084855960,0.1156928,86460.0,86459.0,8e-05]
[1743084856171,0.1156994,86455.0,86454.0,0.41515535]
[1743084856362,0.4764994,86455.0,86454.0,0.41515535]
[1743084857962,0.4764994,86455.0,86454.0,0.53085615]
[1743084858264,0.5764994,86455.0,86454.0,0.53085615]
[1743084859066,0.5764994,86455.0,86454.0,0.41515535]
[1743084859468,0.1157061,86450.0,86449.0,8e-05]
[1743084859766,0.05845371,86450.0,86446.0,0.00017341]
[1743084859963,0.1157102,86447.0,86446.0,0.11588491]
[1743084860168,0.11631021,86447.0,86446.0,0.12446181]
[1743084860467,0.11631021,86447.0,86446.0,0.36442181]
[1743084860657,0.11631021,86447.0,86446.0,0.23511031]
[1743084860862,0.11631021,86447.0,86446.0,0.35082181]
[1743084861072,0.21631021,86447.0,86446.0,0.35082181]
[1743084861371,0.10060001,86447.0,86446.0,0.58082181]
[1743084861963,0.2289,86449.0,86446.0,0.58082181]
[1743084861964,0.1157039,86452.0,86451.0,0.1157035]
[1743084862261,0.3608,86453.0,86452.0,0.1157035]
[1743084862466,0.47790211,86453.0,86452.0,0.5808035]
[1743084862670,0.2364,86462.0,86456.0,0.057849]
[1743084862879,0.2364,86462.0,86461.0,0.1156914]
[1743084863166,0.1038683,86469.0,86468.0,0.1156821]
[1743084863371,0.219549,86469.0,86468.0,0.1174421]
[1743084863567,0.219549,86469.0,86468.0,0.00176]
[1743084863765,0.219549,86469.0,86468.0,0.23526]
[1743084864190,0.219549,86469.0,86468.0,0.00176]
[1743084864471,0.1156821,86468.0,86467.0,0.2337]
[1743084864668,0.5837821,86468.0,86467.0,0.23546]
[1743084865276,0.9445821,86468.0,86467.0,0.00176]
[1743084865466,0.1156887,86463.0,86462.0,0.2338]
[1743084865667,0.1156887,86463.0,86462.0,0.23556]
[1743084865865,0.1156887,86463.0,86462.0,0.3512501]
[1743084866262,0.1156843,86467.0,86466.0,0.1156834]
[1743084866463,0.337,86468.0,86467.0,0.1156834]
[1743084866774,0.1,86468.0,86467.0,0.2462034]
[1743084868166,0.0578211,86498.0,86474.0,0.057837]
[1743084868369,0.2269,86486.0,86485.0,0.1156593]
[1743084868569,0.2269,86486.0,86485.0,0.4782193]
[1743084869069,0.342558,86486.0,86485.0,0.48987093]
[1743084869374,0.342558,86486.0,86485.0,0.01341163]
[1743084869574,0.342558,86486.0,86485.0,0.00176]
[1743084869775,0.115666,86480.0,86479.0,0.2444273]
[1743084869977,0.115666,86480.0,86479.0,0.2461873]
[1743084870280,0.215666,86480.0,86479.0,0.2461073]
[1743084870675,0.345,86480.0,86479.0,0.2461073]
[1743084871173,0.460666,86480.0,86479.0,0.2461073]
[1743084871779,0.345,86480.0,86479.0,0.2461073]
[1743084872177,0.460666,86480.0,86479.0,0.2461073]
[1743084872375,0.345,86480.0,86479.0,0.2461073]
[1743084872576,0.460666,86480.0,86479.0,0.2461073]
[1743084872770,0.345,86480.0,86479.0,0.2461073]
[1743084873279,0.460666,86480.0,86479.0,0.1174273]
[1743084874280,0.460666,86480.0,86479.0,0.00176]
[1743084874481,0.1156687,86478.0,86477.0,0.00025351]
[1743084874673,0.1156687,86478.0,86477.0,0.11584351]
[1743084874975,0.2342,86479.0,86478.0,0.1156687]
[1743084875175,0.3478673,86479.0,86478.0,0.1174287]
[1743084875572,0.3478673,86479.0,86478.0,0.00176]
[1743084875880,0.3478673,86479.0,86478.0,0.1174287]
[1743084876480,0.4478673,86479.0,86478.0,0.1174287]
[1743084876682,0.6696673,86479.0,86478.0,0.1174287]
[1743084877881,0.4478673,86479.0,86478.0,0.1174287]
[1743084878672,0.1,86479.0,86478.0,0.1174287]
[1743084879071,0.2156673,86479.0,86478.0,0.1174287]
[1743084879286,0.2156673,86479.0,86478.0,0.3578287]
[1743084879586,0.4544673,86479.0,86478.0,0.3578287]
[1743084879789,0.3388,86479.0,86478.0,0.3578287]
[1743084879986,0.4544673,86479.0,86478.0,0.3578287]
[1743084880185,0.3388,86479.0,86478.0,0.3578287]
[1743084880688,0.4544673,86479.0,86478.0,0.3578287]
[1743084880891,0.1,86479.0,86478.0,0.3578287]
[1743084881284,0.2156673,86479.0,86478.0,0.3578287]
[1743084881886,0.1,86479.0,86478.0,0.3578287]
[1743084882693,0.2156673,86479.0,86478.0,0.3578287]
[1743084883082,0.4590673,86479.0,86478.0,0.3578287]
[1743084883582,0.4590673,86479.0,86478.0,0.24216]
[1743084883789,0.6817673,86479.0,86478.0,0.24216]
[1743084883984,0.6817673,86479.0,86478.0,0.3578287]
[1743084884590,0.5661,86479.0,86478.0,0.3578287]
[1743084884778,0.6817673,86479.0,86478.0,0.3578287]
[1743084885896,0.5661,86479.0,86478.0,0.3578287]
[1743084886084,0.6817673,86479.0,86478.0,0.3578287]
[1743084886296,0.6817673,86479.0,86478.0,0.6004287]